fUSD/lending_fUSD_20241003
["ID","MTS","AMOUNT","RATE_DAILY","PERIOD"]
[339787102,1727987478033,-825.35,0.00033424,120]
[339787103,1727987478042,-160.0,0.00033424,7]
[339787104,1727987478051,-2326.51,0.00033424,120]
[339787105,1727987478061,-1401.87,0.00033424,120]
[339787106,1727987478070,-500.0,0.00033424,120]
[339787107,1727987478079,-8162.3,0.00033424,120]
[339787108,1727987478088,-500.0,0.00033424,120]
[339787109,1727987478097,-2202.86,0.00033424,3]
[339787110,1727987478106,-500.0,0.00033424,120]
[339787111,1727987478115,-160.0,0.00033424,7]
[339787112,1727987478124,-1721.6,0.00033424,120]
[339787113,1727987478133,-500.0,0.00033424,120]
[339787114,1727987478142,-500.0,0.00033424,120]
[339787115,1727987478152,-1824.09,0.00033424,120]
[339787116,1727987478161,-500.0,0.00033424,120]
[339787117,1727987478170,-500.0,0.00033424,120]
[339787118,1727987478179,-797.25,0.00033424,120]
[339787119,1727987478188,-3694.14,0.00033424,120]
[339787120,1727987478197,-648.29,0.00033424,120]
[339787121,1727987478207,-1962.84,0.00033424,120]
[339787122,1727987478216,-500.0,0.00033424,120]
[339787123,1727987478225,-770.99,0.00033424,120]
[339787124,1727987478235,-1812.58,0.00033424,120]
[339787125,1727987478243,-1106.97,0.00033424,120]
[339787126,1727987478253,-506.57301861,0.00033424,120]
[339787127,1727987478262,-1103.780855,0.00033424,7]
[339787128,1727987478271,-995.24,0.00033424,120]
[339787129,1727987478280,-1533.42,0.00033424,120]
[339787130,1727987478289,-500.0,0.00033424,120]
[339787131,1727987478298,-1245.45,0.00033424,120]
[339787132,1727987478308,-205.761716,0.00033424,7]
[339787133,1727987478317,-1103.780855,0.00033424,7]
[339787134,1727987478327,-2708.28,0.00033424,120]
[339787135,1727987478336,-1028.68,0.00033424,120]
[339787136,1727987478345,-919.76,0.00033424,120]
[339787137,1727987478354,-2392.87,0.00033424,120]
[339787138,1727987478363,-500.0,0.00033424,120]
[339787139,1727987478372,-500.0,0.00033424,120]
[339787140,1727987478382,-205.761716,0.00033424,7]
[339787141,1727987478392,-500.0,0.00033424,120]
[339787142,1727987478401,-500.0,0.00033424,120]
[339787143,1727987478411,-1219.91,0.00033424,120]
[339787144,1727987478420,-1971.05,0.00033424,120]
[339787145,1727987478429,-500.0,0.00033424,120]
[339787146,1727987478438,-967.14,0.00033424,120]
[339787147,1727987478448,-500.0,0.00033424,120]
[339787148,1727987478457,-500.0,0.00033424,120]
[339787149,1727987478466,-11039.47,0.00033424,120]
[339787150,1727987478476,-647.95,0.00033424,120]
[339787151,1727987478485,-1835.01,0.00033424,120]
[339787152,1727987478494,-500.0,0.00033424,120]
[339787153,1727987478503,-1066.51,0.00033424,120]
[339787154,1727987478513,-2054.911659,0.00033424,7]
[339787155,1727987478524,-2065.61,0.00033424,120]
[339787156,1727987478533,-500.0,0.00033424,120]
[339787157,1727987478542,-2041.33,0.00033424,120]
[339787158,1727987478551,-500.0,0.00033424,120]
[339787159,1727987478560,-500.0,0.00033424,120]
[339787160,1727987478569,-810.170864,0.00033424,7]
[339787161,1727987478578,-2054.911659,0.00033424,7]
[339787162,1727987478588,-701.71,0.00033424,120]
[339787163,1727987478597,-344.95245312,0.00033424,120]
[339787164,1727987478606,-512.38,0.00033424,120]
[339787165,1727987478615,-500.0,0.00033424,120]
[339787166,1727987478624,-822.09,0.00033424,120]
[339787167,1727987478634,-810.170864,0.00033424,7]
[339787168,1727987478644,-527.76,0.00033424,120]
[339787169,1727987478653,-500.0,0.00033424,120]
[339787170,1727987478662,-500.0,0.00033424,120]
[339787171,1727987478672,-527.0,0.00033424,120]
[339787172,1727987478681,-1302.4,0.00033424,120]
[339787173,1727987478690,-379.544111,0.00033424,7]
[339787174,1727987478699,-500.0,0.00033424,120]
[339787175,1727987478708,-1041.18,0.00033424,120]
[339787176,1727987478717,-968.42,0.00033424,120]
[339787177,1727987478727,-379.544111,0.00033424,7]
[339787178,1727987478737,-500.0,0.00033424,120]
[339787179,1727987478746,-1510.82,0.00033424,120]
[339787180,1727987478755,-500.0,0.00033424,120]
[339787181,1727987478764,-2058.43,0.00033424,120]
[339787182,1727987478773,-155.688258,0.00033424,7]
[339787183,1727987478782,-1635.85,0.00033424,120]
[339787184,1727987478791,-2566.99,0.00033424,120]
[339787185,1727987478801,-1123.06,0.00033424,120]
[339787186,1727987478810,-500.0,0.00033424,120]
[339787187,1727987478819,-155.688258,0.00033424,7]
[339787188,1727987478829,-1143.448231,0.00033424,7]
[339787189,1727987478839,-500.52,0.00033424,120]
[339787190,1727987478852,-1766.39,0.00033424,120]
[339787191,1727987478861,-500.0,0.00033424,120]
[339787192,1727987478870,-2301.76,0.00033424,120]
[339787193,1727987478879,-1421.18,0.00033424,120]
[339787194,1727987478890,-1143.448231,0.00033424,7]
[339787195,1727987478904,-500.0,0.00033424,120]
[339787196,1727987478914,-1093.77,0.00033424,120]
[339787197,1727987478925,-500.0,0.00033424,120]
[339787198,1727987478936,-2041.08,0.00033424,120]
[339787199,1727987478947,-500.0,0.00033424,120]
[339787200,1727987478957,-1056.72,0.00033424,120]
[339787201,1727987478967,-500.0,0.00033424,120]
[339787202,1727987478977,-500.0,0.00033424,120]
[339787203,1727987478987,-575.99,0.00033424,120]
[339787204,1727987478997,-500.0,0.00033424,120]
[339787205,1727987479007,-4824.18,0.00033424,120]
[339787206,1727987479017,-2539.88,0.00033424,120]
[339787207,1727987479027,-319.56273931,0.00033424,120]
[339787208,1727987479036,-500.0,0.00033424,120]
[339787209,1727987479046,-153.765901,0.00033424,7]
[339787210,1727987479056,-843.366894,0.00033424,7]
[339787211,1727987479067,-1031.81,0.00033424,120]
[339787212,1727987479077,-153.765901,0.00033424,7]
[339787213,1727987479087,-1058.32,0.00033424,120]
[339787214,1727987479097,-843.366894,0.00033424,7]
[339787215,1727987479107,-151.0,0.00033424,7]
[339787216,1727987479117,-500.0,0.00033424,120]
[339787217,1727987479126,-500.0,0.00033424,120]
[339787218,1727987479136,-2770.27,0.00033424,120]
[339787219,1727987479152,-500.0,0.00033424,120]
[339787220,1727987479161,-500.0,0.00033424,120]
[339787221,1727987479171,-500.0,0.00033424,120]
[339787222,1727987479182,-2126.28,0.00033424,120]
[339787223,1727987479192,-500.0,0.00033424,120]
[339787224,1727987479202,-3109.58,0.00033424,120]
[339787225,1727987479212,-500.0,0.00033424,120]
[339787226,1727987479221,-1989.39,0.00033424,120]
[339787227,1727987479231,-500.0,0.00033424,120]
[339787228,1727987479240,-2838.83,0.00033424,120]
[339787229,1727987479250,-2454.73,0.00033424,120]
[339787230,1727987479260,-2489.9,0.00033424,120]
[339787231,1727987479269,-1548.63,0.00033424,120]
[339787232,1727987479279,-1539.86,0.00033424,120]
[339787233,1727987479288,-641.17596169,0.00033424,120]
[339787234,1727987479297,-751.5,0.00033424,120]
[339787235,1727987479307,-500.0,0.00033424,120]
[339787236,1727987479316,-1135.51,0.00033424,120]
[339787237,1727987479326,-26307.75,0.00033424,120]
[339787238,1727987479335,-151.0,0.00033424,7]
[339787239,1727987479344,-1359.32,0.00033424,120]
[339787240,1727987479353,-2373.28,0.00033424,120]
[339787241,1727987479363,-920.13,0.00033424,120]
[339787242,1727987479373,-723.9,0.00033424,120]
[339787243,1727987479382,-500.0,0.00033424,120]
[339787244,1727987479395,-683.05,0.00033424,120]
[339787245,1727987479404,-500.0,0.00033424,120]
[339787246,1727987479413,-500.0,0.00033424,120]
[339787247,1727987479422,-1328.33,0.00033424,120]
[339787248,1727987479431,-500.0,0.00033424,120]
[339787249,1727987479441,-500.0,0.00033424,120]
[339787250,1727987479450,-1718.99,0.00033424,120]
[339787251,1727987479459,-500.0,0.00033424,120]
[339787252,1727987479468,-500.0,0.00033424,120]
[339787253,1727987479477,-2515.59,0.00033424,120]
[339787254,1727987479487,-151.0,0.00033424,7]
[339787255,1727987479497,-953.41,0.00033424,120]
[339787256,1727987479506,-2264.01,0.00033424,120]
[339787257,1727987479515,-328.97353783,0.00033424,120]
[339787258,1727987479524,-876.22,0.00033424,120]
[339787259,1727987479534,-1281.35,0.00033424,120]
[339787260,1727987479543,-2588.02,0.00033424,120]
[339787261,1727987479552,-1057.1,0.00033424,120]
[339787262,1727987479561,-500.0,0.00033424,120]
[339787263,1727987479571,-1543.66,0.00033424,120]
[339787264,1727987479581,-567.28,0.00033424,120]
[339787265,1727987479590,-1451.722291,0.00033424,7]
[339787266,1727987479600,-1173.73,0.00033424,120]
[339787267,1727987479609,-1451.722291,0.00033424,7]
[339787268,1727987479618,-500.0,0.00033424,120]
[339787269,1727987479627,-622.45,0.00033424,120]
[339787270,1727987479637,-831.03,0.00033424,120]
[339787271,1727987479648,-574.46,0.00033424,120]
[339787272,1727987479657,-151.0,0.00033424,7]
[339787273,1727987479666,-500.0,0.00033424,120]
[339787274,1727987479675,-999.57,0.00033424,120]
[339787275,1727987479684,-605.72,0.00033424,120]
[339787276,1727987479693,-500.0,0.00033424,120]
[339787277,1727987479703,-656.14,0.00033424,24]
[339787278,1727987479712,-1059.55,0.00033424,120]
[339787279,1727987479722,-2557.98,0.00033424,120]
[339787280,1727987479731,-500.0,0.00033424,120]
[339787281,1727987479740,-1114.36,0.00033424,120]
[339787282,1727987479749,-985.85,0.00033424,120]
[339787283,1727987479758,-2619.08,0.00033424,120]
[339787284,1727987479768,-2196.8,0.00033424,120]
[339787285,1727987479777,-623.45,0.00033424,120]
[339787286,1727987479786,-500.0,0.00033424,120]
[339787287,1727987479796,-1368.57,0.00033424,120]
[339787288,1727987479805,-534.46,0.00033424,120]
[339787289,1727987479814,-501.69921692,0.00033424,120]
[339787290,1727987479823,-1760.97,0.00033424,120]
[339787291,1727987479832,-1036.03,0.00033424,120]
[339787292,1727987479841,-4833.89,0.00033424,120]
[339787293,1727987479855,-613.95,0.00033424,120]
[339787294,1727987479864,-1437.23,0.00033424,120]
[339787295,1727987479873,-1295.57,0.00033424,120]
[339787296,1727987479883,-581.64,0.00033424,120]
[339787297,1727987479893,-1100.59,0.00033424,120]
[339787298,1727987479902,-500.0,0.00033424,120]
[339787299,1727987479911,-365.08,0.00033424,120]
[339787300,1727987479920,-1584.05,0.00033424,120]
[339787301,1727987479930,-500.0,0.00033424,120]
[339787302,1727987479939,-1739.53,0.00033424,120]
[339787303,1727987479949,-780.59,0.00033424,120]
[339787304,1727987479958,-500.0,0.00033424,120]
[339787305,1727987479967,-10179.37,0.00033424,120]
[339787306,1727987479976,-1002.66,0.00033424,120]
[339787307,1727987479985,-189.943642,0.00033424,7]
[339787308,1727987479994,-567.89,0.00033424,120]
[339787309,1727987480004,-859.91,0.00033424,120]
[339787310,1727987480013,-504.47,0.00033424,120]
[339787311,1727987480022,-151.0,0.00033424,7]
[339787312,1727987480032,-8270.07,0.00033424,21]
[339787313,1727987480041,-669.41,0.00033424,120]
[339787314,1727987480051,-4586.08,0.00033424,120]
[339787315,1727987480060,-1138.44,0.00033424,120]
[339787316,1727987480069,-631.12,0.00033424,120]
[339787317,1727987480078,-2304.02,0.00033424,120]
[339787318,1727987480087,-189.943642,0.00033424,7]
[339787319,1727987480096,-151.0,0.00033424,7]
[339787320,1727987480105,-811.67,0.00033424,120]
[339787321,1727987480114,-500.0,0.00033424,120]
[339787322,1727987480124,-536.29,0.00033424,120]
[339787323,1727987480133,-994.04,0.00033424,120]
[339787324,1727987480145,-500.0,0.00033424,120]
[339787325,1727987480154,-1256.67,0.00033424,120]
[339787326,1727987480163,-1487.03,0.00033424,120]
[339787327,1727987480172,-500.0,0.00033424,120]
[339787328,1727987480182,-25595.3300783,0.00033477,2]
[339787329,1727987480191,-1858.0217429,0.00033477,2]
[339787330,1727987480200,-1705.2384955,0.00033477,2]
[339787331,1727987480210,-23284.2482159,0.00033477,2]
[339787332,1727987480219,-1500000.0,0.000335,60]
[339787333,1727987480229,-151.0,0.000335,7]
[339787334,1727987480238,-151.0,0.000335,7]
[339787335,1727987480248,-151.0,0.000335,7]
[339787336,1727987480257,-151.0,0.000335,7]
[339787337,1727987480266,-151.0,0.000335,7]
[339787338,1727987480275,-151.0,0.000335,7]
[339787339,1727987480284,-151.0,0.000335,7]
[339787340,1727987480294,-151.0,0.000335,7]
[339787341,1727987480303,-151.0,0.000335,7]
[339787342,1727987480312,-259.331952,0.000335,7]
[339787343,1727987480321,-151.0,0.000335,7]
[339787344,1727987480330,-151.0,0.000335,7]
[339787345,1727987480340,-161.17109,0.000335,7]
[339787346,1727987480350,-151.0,0.000335,7]
[339787347,1727987480359,-242.666669,0.000335,7]
[339787348,1727987480368,-242.666669,0.000335,7]
[339787349,1727987480377,-151.0,0.000335,7]
[339787350,1727987480386,-151.0,0.000335,7]
[339787351,1727987480396,-151.0,0.000335,7]
[339787352,1727987480406,-151.0,0.000335,7]
[339787353,1727987480415,-380.037178,0.000335,7]
[339787354,1727987480425,-380.037178,0.000335,7]
[339787355,1727987480434,-280.389785,0.000335,7]
[339787356,1727987480443,-280.389785,0.000335,7]
[339787357,1727987480452,-305.552585,0.000335,7]
[339787358,1727987480462,-305.552585,0.000335,7]
[339787359,1727987480471,-3436.547188,0.000335,7]
[339787360,1727987480480,-3436.547188,0.000335,7]
[339787361,1727987480489,-272.92873,0.000335,7]
[339787362,1727987480498,-151.0,0.000335,7]
[339787363,1727987480507,-272.92873,0.000335,7]
[339787364,1727987480516,-151.0,0.000335,7]
[339787365,1727987480526,-151.0,0.000335,7]
[339787366,1727987480535,-151.0,0.000335,7]
[339787367,1727987480544,-151.0,0.000335,7]
[339787368,1727987480554,-151.0,0.000335,7]
[339787369,1727987480563,-151.0,0.000335,7]
[339787370,1727987480572,-151.0,0.000335,7]
[339787371,1727987480581,-162.493315,0.000335,7]
[339787372,1727987480590,-162.493315,0.000335,7]
[339787373,1727987480600,-172.725409,0.000335,7]
[339787374,1727987480609,-172.725409,0.000335,7]
[339787375,1727987480619,-1382.2645,0.000335,7]
[339787376,1727987480629,-212.219392,0.000335,7]
[339787377,1727987480638,-212.219392,0.000335,7]
[339787378,1727987480655,-448.340669,0.000335,7]
[339787379,1727987480664,-151.0,0.000335,7]
[339787380,1727987480674,-448.340669,0.000335,7]
[339787381,1727987480684,-316.28097,0.000335,7]
[339787382,1727987480693,-316.28097,0.000335,7]
[339787383,1727987480703,-181.278868,0.000335,7]
[339787384,1727987480714,-181.278868,0.000335,7]
[339787385,1727987480724,-151.0,0.000335,7]
[339787386,1727987480734,-151.0,0.000335,7]
[339787387,1727987480744,-151.0,0.000335,7]
[339787388,1727987480753,-1768.990651,0.000335,7]
[339787389,1727987480763,-1768.990651,0.000335,7]
[339787390,1727987480773,-801.012603,0.000335,7]
[339787391,1727987480783,-801.012603,0.000335,7]
[339787392,1727987480793,-775.222596,0.000335,7]
[339787393,1727987480803,-775.222596,0.000335,7]
[339787394,1727987480812,-2184.089244,0.000335,7]
[339787395,1727987480822,-2184.089244,0.000335,7]
[339787396,1727987480833,-10000.0,0.000335,7]
[339787397,1727987480845,-10000.0,0.000335,7]
[339787398,1727987480854,-10000.0,0.000335,7]
[339787399,1727987480863,-10000.0,0.000335,7]
[339787400,1727987480873,-10000.0,0.000335,7]
[339787401,1727987480883,-594.854743,0.000335,7]
[339787402,1727987480895,-594.854743,0.000335,7]
[339787403,1727987480904,-871.817102,0.000335,7]
[339787404,1727987480916,-151.0,0.000335,7]
[339787405,1727987481048,-871.817102,0.000335,7]
[339787406,1727987481058,-1389.631609,0.000335,7]
[339787407,1727987481068,-1389.631609,0.000335,7]
[339787408,1727987481077,-197.419055,0.000335,7]
[339787409,1727987481086,-197.419055,0.000335,7]
[339787410,1727987481096,-366.010612,0.000335,7]
[339787411,1727987481105,-366.010612,0.000335,7]
[339787412,1727987481116,-426.78146,0.000335,7]
[339787413,1727987481125,-426.78146,0.000335,7]
[339787414,1727987481135,-3842.317748,0.000335,7]
[339787415,1727987481149,-3842.317748,0.000335,7]
[339787416,1727987481163,-151.0,0.000335,7]
[339787417,1727987481173,-151.0,0.000335,7]
[339787418,1727987481183,-269.982589,0.000335,7]
[339787419,1727987481192,-586.293285,0.000335,7]
[339787420,1727987481203,-269.982589,0.000335,7]
[339787421,1727987481212,-586.293285,0.000335,7]
[339787422,1727987481223,-160.0,0.000335,7]
[339787423,1727987481233,-160.0,0.000335,7]
[339787424,1727987481243,-1103.780855,0.000335,7]
[339787425,1727987481254,-205.761716,0.000335,7]
[339787426,1727987481264,-1103.780855,0.000335,7]
[339787427,1727987481274,-205.761716,0.000335,7]
[339787428,1727987481284,-2054.911659,0.000335,7]
[339787429,1727987481294,-810.170864,0.000335,7]
[339787430,1727987481303,-2054.911659,0.000335,7]
[339787431,1727987481312,-810.170864,0.000335,7]
[339787432,1727987481322,-379.544111,0.000335,7]
[339787433,1727987481332,-379.544111,0.000335,7]
[339787434,1727987481342,-155.688258,0.000335,7]
[339787435,1727987481352,-155.688258,0.000335,7]
[339787436,1727987481362,-1143.448231,0.000335,7]
[339787437,1727987481371,-1143.448231,0.000335,7]
[339787438,1727987481381,-153.765901,0.000335,7]
[339787439,1727987481392,-843.366894,0.000335,7]
[339787440,1727987481403,-153.765901,0.000335,7]
[339787441,1727987481412,-843.366894,0.000335,7]
[339787442,1727987481421,-254.529878,0.000335,7]
[339787443,1727987481430,-151.0,0.000335,7]
[339787444,1727987481440,-151.0,0.000335,7]
[339787445,1727987481449,-1451.722291,0.000335,7]
[339787446,1727987481459,-1451.722291,0.000335,7]
[339787447,1727987481468,-151.0,0.000335,7]
[339787448,1727987481478,-189.943642,0.000335,7]
[339787449,1727987481487,-151.0,0.000335,7]
[339787450,1727987481496,-189.943642,0.000335,7]
[339787451,1727987481506,-297.086043,0.000335,7]
[339787452,1727987481516,-2000.0,0.0003353,2]
[339787453,1727987481526,-1500.0,0.00033548,2]
[339787454,1727987481535,-754.34,0.00033562,2]
[339787455,1727987481544,-862.56,0.00033562,2]
[339787456,1727987481554,-2251.5019805,0.00033607,7]
[339787457,1727987481563,-3007.50576663,0.00033607,7]
[339787458,1727987481573,-2899.87242423,0.00033607,7]
[339787459,1727987481582,-500.0,0.00033698,7]
[339787460,1727987481591,-151.0,0.00033698,7]
[339787461,1727987481601,-151.0,0.00033698,7]
[339787462,1727987481610,-151.0,0.00033698,7]
[339787463,1727987481619,-151.0,0.00033698,7]
[339787464,1727987481629,-153.23602,0.00033698,7]
[339787465,1727987481639,-242.666669,0.00033698,7]
[339787466,1727987481651,-242.666669,0.00033698,7]
[339787467,1727987481660,-151.0,0.00033698,7]
[339787468,1727987481670,-151.0,0.00033698,7]
[339787469,1727987481680,-151.0,0.00033698,7]
[339787470,1727987481690,-151.0,0.00033698,7]
[339787471,1727987481700,-380.037178,0.00033698,7]
[339787472,1727987481710,-380.037178,0.00033698,7]
[339787473,1727987481720,-280.389785,0.00033698,7]
[339787474,1727987481729,-280.389785,0.00033698,7]
[339787475,1727987481739,-305.552585,0.00033698,7]
[339787476,1727987481749,-305.552585,0.00033698,7]
[339787477,1727987481759,-3436.547188,0.00033698,7]
[339787478,1727987481768,-3436.547188,0.00033698,7]
[339787479,1727987481778,-272.92873,0.00033698,7]
[339787480,1727987481787,-151.0,0.00033698,7]
[339787481,1727987481796,-272.92873,0.00033698,7]
[339787482,1727987481805,-151.0,0.00033698,7]
[339787483,1727987481814,-151.0,0.00033698,7]
[339787484,1727987481824,-151.0,0.00033698,7]
[339787485,1727987481835,-151.0,0.00033698,7]
[339787486,1727987481844,-151.0,0.00033698,7]
[339787487,1727987481856,-151.0,0.00033698,7]
[339787488,1727987481866,-1830.04,0.00033698,120]
[339787489,1727987481876,-500.0,0.00033698,120]
[339787490,1727987481887,-151.0,0.00033698,7]
[339787491,1727987481901,-731.74,0.00033698,120]
[339787492,1727987481911,-1465.14,0.00033698,120]
[339787493,1727987481920,-500.0,0.00033698,120]
[339787494,1727987481931,-150.0,0.00033698,120]
[339787495,1727987481941,-500.0,0.00033698,120]
[339787496,1727987481951,-500.0,0.00033698,120]
[339787497,1727987481960,-500.0,0.00033698,120]
[339787498,1727987481970,-1375.31,0.00033698,120]
[339787499,1727987481979,-500.0,0.00033698,120]
[339787500,1727987481989,-668.57,0.00033698,120]
[339787501,1727987481998,-500.0,0.00033698,120]
[339787502,1727987482008,-500.0,0.00033698,120]
[339787503,1727987482018,-500.0,0.00033698,120]
[339787504,1727987482028,-1062.68,0.00033698,120]
[339787505,1727987482038,-500.0,0.00033698,120]
[339787506,1727987482048,-1108.65,0.00033698,120]
[339787507,1727987482057,-1917.75,0.00033698,120]
[339787508,1727987482067,-1239.66,0.00033698,120]
[339787509,1727987482077,-162.493315,0.00033698,7]
[339787510,1727987482086,-749.5,0.00033698,120]
[339787511,1727987482096,-162.493315,0.00033698,7]
[339787512,1727987482105,-1219.3,0.00033698,120]
[339787513,1727987482115,-426.14930305,0.00033698,120]
[339787514,1727987482124,-1706.35,0.00033698,120]
[339787515,1727987482134,-500.0,0.00033698,120]
[339787516,1727987482146,-1816.28,0.00033698,120]
[339787517,1727987482162,-172.725409,0.00033698,7]
[339787518,1727987482172,-608.59,0.00033698,120]
[339787519,1727987482181,-172.725409,0.00033698,7]
[339787520,1727987482191,-500.0,0.00033698,120]
[339787521,1727987482201,-500.0,0.00033698,120]
[339787522,1727987482210,-500.0,0.00033698,120]
[339787523,1727987482220,-500.0,0.00033698,120]
[339787524,1727987482230,-688.2,0.00033698,120]
[339787525,1727987482239,-818.32,0.00033698,120]
[339787526,1727987482249,-500.0,0.00033698,120]
[339787527,1727987482259,-1382.2645,0.00033698,7]
[339787528,1727987482269,-212.219392,0.00033698,7]
[339787529,1727987482279,-500.0,0.00033698,120]
[339787530,1727987482288,-2173.75,0.00033698,120]
[339787531,1727987482298,-212.219392,0.00033698,7]
[339787532,1727987482307,-721.06,0.00033698,120]
[339787533,1727987482317,-2649.5,0.00033698,120]
[339787534,1727987482327,-500.0,0.00033698,120]
[339787535,1727987482338,-500.0,0.00033698,120]
[339787536,1727987482347,-500.0,0.00033698,120]
[339787537,1727987482357,-500.0,0.00033698,120]
[339787538,1727987482367,-500.0,0.00033698,120]
[339787539,1727987482376,-500.0,0.00033698,120]
[339787540,1727987482386,-952.32,0.00033698,120]
[339787541,1727987482401,-500.0,0.00033698,15]
[339787542,1727987482411,-508.75,0.00033698,120]
[339787543,1727987482420,-500.0,0.00033698,120]
[339787544,1727987482430,-500.0,0.00033698,120]
[339787545,1727987482439,-2782.16,0.00033698,120]
[339787546,1727987482448,-500.0,0.00033698,120]
[339787547,1727987482458,-500.0,0.00033698,120]
[339787548,1727987482470,-500.0,0.00033698,120]
[339787549,1727987482479,-500.0,0.00033698,120]
[339787550,1727987482489,-799.66,0.00033698,120]
[339787551,1727987482499,-500.0,0.00033698,120]
[339787552,1727987482508,-528.54,0.00033698,120]
[339787553,1727987482518,-500.0,0.00033698,120]
[339787554,1727987482527,-500.0,0.00033698,120]
[339787555,1727987482537,-1116.48,0.00033698,120]
[339787556,1727987482547,-500.0,0.00033698,120]
[339787557,1727987482556,-500.0,0.00033698,120]
[339787558,1727987482566,-500.0,0.00033698,120]
[339787559,1727987482576,-500.0,0.00033698,120]
[339787560,1727987482586,-500.0,0.00033698,120]
[339787561,1727987482596,-667.6,0.00033698,120]
[339787562,1727987482605,-516.86,0.00033698,120]
[339787563,1727987482615,-500.0,0.00033698,120]
[339787564,1727987482625,-577.36,0.00033698,120]
[339787565,1727987482634,-448.340669,0.00033698,7]
[339787566,1727987482645,-151.0,0.00033698,7]
[339787567,1727987482658,-500.0,0.00033698,120]
[339787568,1727987482668,-448.340669,0.00033698,7]
[339787569,1727987482677,-2275.0,0.00033698,120]
[339787570,1727987482686,-2110.0,0.00033698,2]
[339787571,1727987482696,-1181.76,0.00033698,120]
[339787572,1727987482706,-1059.01,0.00033698,120]
[339787573,1727987482715,-500.0,0.00033698,120]
[339787574,1727987482725,-678.32,0.00033698,120]
[339787575,1727987482735,-316.28097,0.00033698,7]
[339787576,1727987482745,-500.0,0.00033698,120]
[339787577,1727987482755,-500.0,0.00033698,120]
[339787578,1727987482764,-908.96,0.00033698,120]
[339787579,1727987482773,-806.47,0.00033698,120]
[339787580,1727987482783,-316.28097,0.00033698,7]
[339787581,1727987482793,-500.0,0.00033698,120]
[339787582,1727987482802,-181.278868,0.00033698,7]
[339787583,1727987482812,-1850.2,0.00033698,120]
[339787584,1727987482823,-500.0,0.00033698,120]
[339787585,1727987482833,-181.278868,0.00033698,7]
[339787586,1727987482846,-500.0,0.00033698,120]
[339787587,1727987482856,-500.0,0.00033698,120]
[339787588,1727987482865,-500.0,0.00033698,120]
[339787589,1727987482875,-532.65,0.00033698,120]
[339787590,1727987482884,-500.0,0.00033698,120]
[339787591,1727987482893,-500.0,0.00033698,120]
[339787592,1727987482904,-500.0,0.00033698,120]
[339787593,1727987482914,-500.0,0.00033698,120]
[339787594,1727987482925,-951.98,0.00033698,120]
[339787595,1727987482935,-3113.1,0.00033698,120]
[339787596,1727987482945,-500.0,0.00033698,120]
[339787597,1727987482954,-952.18,0.00033698,120]
[339787598,1727987482964,-1578.27,0.00033698,120]
[339787599,1727987482975,-799.85,0.00033698,120]
[339787600,1727987482985,-500.0,0.00033698,120]
[339787601,1727987482995,-584.82,0.00033698,120]